fUSD/lending_fUSD_20250110
["ID","MTS","AMOUNT","RATE_DAILY","PERIOD"]
[348382805,1736490639987,-500.0,9.998e-05,2]
[348382806,1736490639998,-757.5,9.998e-05,2]
[348382807,1736490640010,-500.0,9.998e-05,2]
[348382808,1736490640020,-500.0,9.998e-05,2]
[348382809,1736490640031,-500.0,9.998e-05,2]
[348382810,1736490640042,-22311.34753071,9.998e-05,2]
[348382811,1736490640053,-626.64,9.998e-05,2]
[348382812,1736490640064,-500.0,9.998e-05,2]
[348382813,1736490640076,-500.0,9.998e-05,2]
[348382814,1736490640087,-500.0,9.998e-05,2]
[348382815,1736490640098,-500.0,9.998e-05,2]
[348382816,1736490640108,-500.0,9.998e-05,2]
[348382817,1736490640118,-715.97,9.998e-05,2]
[348382818,1736490640129,-500.0,9.998e-05,2]
[348382819,1736490640140,-574.34,9.998e-05,2]
[348382820,1736490640151,-684.54,9.998e-05,2]
[348382821,1736490640162,-500.0,9.998e-05,2]
[348382822,1736490640173,-701.57,9.998e-05,2]
[348382823,1736490640184,-571.2,9.998e-05,2]
[348382824,1736490640194,-512.13,9.998e-05,2]
[348382825,1736490640205,-500.0,9.998e-05,2]
[348382826,1736490640217,-785.0,9.998e-05,2]
[348382827,1736490640229,-693.74,9.998e-05,2]
[348382828,1736490640239,-755.56,9.998e-05,2]
[348382829,1736490640250,-500.0,9.998e-05,2]
[348382831,1736490640262,-607.6,9.998e-05,2]
[348382832,1736490640272,-666.23,9.998e-05,2]
[348382833,1736490640283,-500.0,9.998e-05,2]
[348382834,1736490640293,-599.36,9.998e-05,2]
[348382835,1736490640304,-500.0,9.998e-05,2]
[348382836,1736490640314,-500.0,9.998e-05,2]
[348382837,1736490640325,-685.35,9.998e-05,2]
[348382838,1736490640336,-500.0,9.998e-05,2]
[348382839,1736490640348,-657.29,9.998e-05,2]
[348382840,1736490640359,-500.0,9.998e-05,2]
[348382841,1736490640369,-500.0,9.998e-05,2]
[348382842,1736490640379,-512.17,9.998e-05,2]
[348382843,1736490640390,-500.0,9.998e-05,2]
[348382844,1736490640400,-500.0,9.998e-05,2]
[348382845,1736490640765,-500.0,9.998e-05,2]
[348382846,1736490640780,-2452.06,9.998e-05,2]
[348382847,1736490640789,-500.0,9.998e-05,2]
[348382848,1736490640798,-759.7,9.998e-05,2]
[348382849,1736490640807,-500.0,9.998e-05,2]
[348382850,1736490640816,-643.12,9.998e-05,2]
[348382851,1736490640825,-500.0,9.998e-05,2]
[348382852,1736490640834,-500.0,9.998e-05,2]
[348382853,1736490640843,-567.85,9.998e-05,2]
[348382854,1736490640852,-500.0,9.998e-05,2]
[348382855,1736490640861,-500.0,9.998e-05,2]
[348382856,1736490640870,-503.97052242,9.998e-05,2]
[348382857,1736490640880,-541.13,9.998e-05,2]
[348382858,1736490640889,-691.19,9.998e-05,2]
[348382859,1736490640898,-500.0,9.998e-05,2]
[348382860,1736490640907,-500.0,9.998e-05,2]
[348382861,1736490640916,-501.78,9.998e-05,2]
[348382862,1736490640925,-500.0,9.998e-05,2]
[348382863,1736490640934,-799.34,9.998e-05,2]
[348382864,1736490640943,-651.7,9.998e-05,2]
[348382865,1736490640952,-500.0,9.998e-05,2]
[348382866,1736490640961,-621.92,9.998e-05,2]
[348382867,1736490640971,-582.36,9.998e-05,2]
[348382868,1736490640980,-1334.13,9.998e-05,2]
[348382869,1736490640990,-862.89,9.998e-05,2]
[348382870,1736490641000,-3175.59,9.998e-05,2]
[348382871,1736490641009,-817.27,9.998e-05,2]
[348382872,1736490641018,-6549.82,9.998e-05,2]
[348382873,1736490641027,-514.66,9.998e-05,2]
[348382874,1736490641037,-500.0,9.998e-05,2]
[348382875,1736490641046,-1144.66,9.998e-05,2]
[348382876,1736490641056,-800.77,9.998e-05,2]
[348382877,1736490641065,-500.0,9.998e-05,2]
[348382878,1736490641074,-681.77,9.998e-05,2]
[348382879,1736490641083,-2749.64,9.998e-05,2]
[348382880,1736490641092,-664.69,9.998e-05,2]
[348382881,1736490641102,-731.78,9.998e-05,2]
[348382882,1736490641111,-867.19,9.998e-05,2]
[348382883,1736490641120,-709.82,9.998e-05,2]
[348382884,1736490641130,-940.01,9.998e-05,2]
[348382885,1736490641139,-549.73,9.998e-05,2]
[348382886,1736490641148,-784.76,9.998e-05,2]
[348382887,1736490641158,-2460.17,9.998e-05,2]
[348382888,1736490641167,-500.0,9.998e-05,2]
[348382889,1736490641176,-597.87,9.998e-05,2]
[348382890,1736490641186,-985.82,9.998e-05,2]
[348382891,1736490641195,-500.0,9.998e-05,2]
[348382892,1736490641204,-500.0,9.998e-05,2]
[348382893,1736490641213,-2525.55,9.998e-05,2]
[348382894,1736490641222,-867.04,9.998e-05,2]
[348382895,1736490641231,-1601.91,9.998e-05,2]
[348382896,1736490641240,-500.0,9.998e-05,2]
[348382897,1736490641250,-500.0,9.998e-05,2]
[348382898,1736490641259,-746.03,9.998e-05,2]
[348382899,1736490641267,-583.32,9.998e-05,2]
[348382900,1736490641277,-2538.68,9.998e-05,2]
[348382901,1736490641286,-629.74,9.998e-05,2]
[348382902,1736490641295,-629.13,9.998e-05,2]
[348382903,1736490641304,-542.92,9.998e-05,2]
[348382904,1736490641313,-500.0,9.998e-05,2]
[348382905,1736490641322,-997.04,9.998e-05,2]
[348382906,1736490641331,-500.0,9.998e-05,2]
[348382907,1736490641340,-160.866182,9.998e-05,2]
[348382908,1736490641349,-500.0,9.998e-05,2]
[348382909,1736490641358,-822.49,9.998e-05,2]
[348382910,1736490641367,-500.0,9.998e-05,2]
[348382911,1736490641376,-799.45,9.998e-05,2]
[348382912,1736490641385,-500.0,9.998e-05,2]
[348382913,1736490641394,-1481.76,9.998e-05,2]
[348382914,1736490641403,-500.0,9.998e-05,2]
[348382915,1736490641412,-568.53,9.998e-05,2]
[348382916,1736490641421,-1127.88,9.998e-05,2]
[348382917,1736490641430,-500.0,9.998e-05,2]
[348382918,1736490641439,-603.46,9.998e-05,2]
[348382919,1736490641448,-1250.41,9.998e-05,2]
[348382920,1736490641457,-920.69,9.998e-05,2]
[348382921,1736490641466,-582.17,9.998e-05,2]
[348382922,1736490641475,-500.0,9.998e-05,2]
[348382923,1736490641484,-887.12,9.998e-05,2]
[348382924,1736490641493,-500.0,9.998e-05,2]
[348382925,1736490641503,-1123.3,9.998e-05,2]
[348382926,1736490641511,-500.0,9.998e-05,2]
[348382927,1736490641520,-538.45,9.998e-05,2]
[348382928,1736490641530,-602.74893065,9.998e-05,2]
[348382929,1736490641539,-500.0,9.998e-05,2]
[348382930,1736490641548,-1026.64,9.998e-05,2]
[348382931,1736490641557,-500.0,9.998e-05,2]
[348382932,1736490641566,-500.0,9.998e-05,2]
[348382933,1736490641577,-500.0,9.998e-05,2]
[348382934,1736490641586,-500.0,9.998e-05,2]
[348382935,1736490641595,-709.9,9.998e-05,2]
[348382936,1736490641604,-510.51,9.998e-05,2]
[348382937,1736490641613,-1276.45,9.998e-05,2]
[348382938,1736490641622,-500.0,9.998e-05,2]
[348382939,1736490641631,-500.0,9.998e-05,2]
[348382940,1736490641640,-987.77,9.998e-05,2]
[348382941,1736490641649,-500.0,9.998e-05,2]
[348382942,1736490641658,-500.0,9.998e-05,2]
[348382943,1736490641667,-500.0,9.998e-05,2]
[348382944,1736490641676,-500.0,9.998e-05,2]
[348382945,1736490641685,-500.0,9.998e-05,2]
[348382946,1736490641694,-500.0,9.998e-05,2]
[348382947,1736490641703,-839.45,9.998e-05,2]
[348382948,1736490641713,-500.0,9.998e-05,2]
[348382949,1736490641723,-500.0,9.998e-05,2]
[348382950,1736490641732,-3779.15945702,9.999e-05,2]
[348382951,1736490641742,-420.50607867,9.999e-05,2]
[348382952,1736490641751,-500.0,9.999e-05,2]
[348382953,1736490641760,-500.0,9.999e-05,2]
[348382954,1736490641770,-500.0,9.999e-05,2]
[348382955,1736490641779,-500.0,9.999e-05,2]
[348382956,1736490641789,-600.5511002,9.999e-05,2]
[348382957,1736490641798,-500.0,9.999e-05,2]
[348382958,1736490641807,-500.0,9.999e-05,2]
[348382959,1736490641816,-500.0,9.999e-05,2]
[348382960,1736490641827,-490.0,9.999e-05,2]
[348382961,1736490641836,-500.0,9.999e-05,2]
[348382962,1736490641846,-500.0,9.999e-05,2]
[348382963,1736490641855,-500.0,9.999e-05,2]
[348382964,1736490641865,-500.0,9.999e-05,2]
[348382965,1736490641874,-500.0,9.999e-05,2]
[348382966,1736490641883,-500.0,9.999e-05,2]
[348382967,1736490641893,-500.0,9.999e-05,2]
[348382968,1736490641902,-500.0,9.999e-05,2]
[348382969,1736490641911,-500.0,9.999e-05,2]
[348382970,1736490641920,-500.0,9.999e-05,2]
[348382971,1736490641930,-500.0,9.999e-05,2]
[348382972,1736490641939,-500.0,9.999e-05,2]
[348382973,1736490641948,-504.42110493,9.999e-05,2]
[348382974,1736490641957,-500.0,9.999e-05,2]
[348382975,1736490641967,-500.0,9.999e-05,2]
[348382976,1736490641975,-500.0,9.999e-05,2]
[348382977,1736490641985,-500.0,9.999e-05,2]
[348382978,1736490641994,-500.0,9.999e-05,2]
[348382979,1736490642003,-500.0,9.999e-05,2]
[348382980,1736490642012,-480.01496989,9.999e-05,2]
[348382981,1736490642029,-19.98503011,9.999e-05,2]
[348382982,1736490642038,-500.0,9.999e-05,2]
[348382983,1736490642048,-500.0,9.999e-05,2]
[348382984,1736490642057,-610.01,9.999e-05,2]
[348382985,1736490642067,-500.0,9.999e-05,2]
[348382986,1736490642077,-267.62817761,9.999e-05,2]
[348382987,1736490642086,-500.0,9.999e-05,2]
[348382988,1736490642096,-500.0,9.999e-05,2]
[348382989,1736490642105,-500.0,9.999e-05,2]
[348382990,1736490642114,-500.0,9.999e-05,2]
[348382991,1736490642124,-500.0,9.999e-05,2]
[348382992,1736490642133,-500.0,9.999e-05,2]
[348382993,1736490642143,-502.66602578,9.999e-05,2]
[348382994,1736490642152,-514.38615332,9.999e-05,2]
[348382995,1736490642161,-500.0,9.999e-05,2]
[348382996,1736490642171,-500.0,9.999e-05,2]
[348382997,1736490642179,-1574.38,9.999e-05,2]
[348382998,1736490642189,-500.0,9.999e-05,2]
[348382999,1736490642198,-500.0,9.999e-05,2]
[348383000,1736490642207,-507.85,9.999e-05,2]
[348383001,1736490642216,-543.53,9.999e-05,2]
[348383002,1736490642225,-500.0,9.999e-05,2]
[348383003,1736490642235,-208.75940069,9.999e-05,2]
[348383004,1736490642245,-500.0,9.999e-05,2]
[348383005,1736490642254,-500.0,9.999e-05,2]
[348383006,1736490642264,-500.0,9.999e-05,2]
[348383007,1736490642273,-500.0,9.999e-05,2]
[348383008,1736490642282,-209.28865263,9.999e-05,2]
[348383009,1736490642291,-500.0,9.999e-05,2]
[348383010,1736490642302,-500.0,9.999e-05,2]
[348383011,1736490642311,-500.0,9.999e-05,2]
[348383012,1736490642322,-506.57733724,9.999e-05,2]
[348383013,1736490642332,-504.76881502,9.999e-05,2]
[348383014,1736490642342,-500.0,9.999e-05,2]
[348383015,1736490642351,-500.0,9.999e-05,2]
[348383016,1736490642360,-500.7281798,9.999e-05,2]
[348383017,1736490642370,-500.0,9.999e-05,2]
[348383018,1736490642381,-500.0,9.999e-05,2]
[348383019,1736490642391,-500.0,9.999e-05,2]
[348383020,1736490642401,-500.0,9.999e-05,2]
[348383021,1736490642411,-500.0,9.999e-05,2]
[348383022,1736490642422,-500.0,9.999e-05,2]
[348383023,1736490642432,-500.0,9.999e-05,2]
[348383024,1736490642441,-2360.93,9.999e-05,2]
[348383025,1736490642451,-500.0,9.999e-05,2]
[348383026,1736490642462,-500.0,9.999e-05,2]
[348383027,1736490642472,-500.0,9.999e-05,2]
[348383028,1736490642483,-500.0,9.999e-05,2]
[348383029,1736490642493,-1144.49,9.999e-05,2]
[348383030,1736490642503,-334.0424685,9.999e-05,2]
[348383031,1736490642512,-509.00609673,9.999e-05,2]
[348383032,1736490642525,-908.01,9.999e-05,2]
[348383033,1736490642535,-581.81,9.999e-05,2]
[348383034,1736490642545,-890.42,9.999e-05,2]
[348383035,1736490642554,-1197.11,9.999e-05,2]
[348383036,1736490642564,-500.0,9.999e-05,2]
[348383037,1736490642577,-788.91,9.999e-05,2]
[348383038,1736490642586,-500.88715169,9.999e-05,2]
[348383039,1736490642595,-172.18270122,9.999e-05,2]
[348383040,1736490642606,-500.0,9.999e-05,2]
[348383041,1736490642618,-500.0,9.999e-05,2]
[348383042,1736490642630,-992.11,9.999e-05,2]
[348383043,1736490642640,-500.0,9.999e-05,2]
[348383044,1736490642651,-1317.01,9.999e-05,2]
[348383045,1736490642661,-781.02,9.999e-05,2]
[348383046,1736490642671,-1007.53,9.999e-05,2]
[348383047,1736490642680,-500.0,9.999e-05,2]
[348383048,1736490642691,-500.0,9.999e-05,2]
[348383049,1736490642701,-500.0,9.999e-05,2]
[348383050,1736490642711,-916.25,9.999e-05,2]
[348383051,1736490642722,-500.0,9.999e-05,2]
[348383052,1736490642731,-1261.26,9.999e-05,2]
[348383053,1736490642742,-500.0,9.999e-05,2]
[348383054,1736490642751,-572.62,9.999e-05,2]
[348383055,1736490642760,-2639.11,9.999e-05,2]
[348383056,1736490642769,-1343.63,9.999e-05,2]
[348383057,1736490642779,-1401.11,9.999e-05,2]
[348383058,1736490642788,-1250.02,9.999e-05,2]
[348383059,1736490642797,-500.0,9.999e-05,2]
[348383060,1736490642807,-500.0,9.999e-05,2]
[348383061,1736490642817,-1906.17,9.999e-05,2]
[348383062,1736490642830,-500.0,9.999e-05,2]
[348383063,1736490642839,-500.0,9.999e-05,2]
[348383064,1736490642848,-500.0,9.999e-05,2]
[348383065,1736490642857,-500.0,9.999e-05,2]
[348383066,1736490642867,-219.25429665,9.999e-05,2]
[348383067,1736490642877,-500.0,9.999e-05,2]
[348383068,1736490642886,-1047.76,9.999e-05,2]
[348383069,1736490642895,-500.0,9.999e-05,2]
[348383070,1736490642905,-1385.64,9.999e-05,2]
[348383071,1736490642914,-500.0,9.999e-05,2]
[348383072,1736490642923,-1981.1,9.999e-05,2]
[348383073,1736490642932,-500.0,9.999e-05,2]
[348383074,1736490642941,-1000.0,9.999e-05,2]
[348383075,1736490642951,-530.08,9.999e-05,2]
[348383076,1736490642960,-500.0,9.999e-05,2]
[348383077,1736490642970,-510.69986738,9.999e-05,2]
[348383078,1736490642980,-1171.03,9.999e-05,2]
[348383079,1736490642989,-500.0,9.999e-05,2]
[348383080,1736490642999,-2307.9,9.999e-05,2]
[348383081,1736490643009,-1311.05,9.999e-05,2]
[348383082,1736490643019,-1049.97,9.999e-05,2]
[348383083,1736490643029,-2251.8,9.999e-05,2]
[348383084,1736490643039,-385.83250084,9.999e-05,2]
[348383085,1736490643048,-895.22,9.999e-05,2]
[348383086,1736490643058,-500.0,9.999e-05,2]
[348383087,1736490643067,-500.0,9.999e-05,2]
[348383088,1736490643080,-5941.12,9.999e-05,2]
[348383089,1736490643089,-1155.61,9.999e-05,2]
[348383090,1736490643098,-500.0,9.999e-05,2]
[348383091,1736490643108,-511.2896865,9.999e-05,2]
[348383093,1736490643117,-679.65,9.999e-05,2]
[348383095,1736490643127,-1336.34,9.999e-05,2]
[348383097,1736490643137,-500.0,9.999e-05,2]
[348383098,1736490643146,-1187.25,9.999e-05,2]
[348383099,1736490643156,-500.0,9.999e-05,2]
[348383100,1736490643165,-500.0,9.999e-05,2]
[348383101,1736490643175,-3850.95,9.999e-05,2]
[348383102,1736490643185,-2524.75,9.999e-05,2]
[348383103,1736490643194,-2315.8,9.999e-05,2]
[348383104,1736490643204,-500.0,9.999e-05,2]
[348383105,1736490643214,-500.0,9.999e-05,2]
[348383106,1736490643223,-1669.21,9.999e-05,2]
[348383107,1736490643233,-500.0,9.999e-05,2]
[348383108,1736490643243,-1672.73,9.999e-05,2]
[348383109,1736490643252,-500.0,9.999e-05,2]
[348383110,1736490643261,-500.0,9.999e-05,2]
[348383111,1736490643270,-500.0,9.999e-05,2]
[348383112,1736490643281,-500.0,9.999e-05,2]
[348383113,1736490643291,-791.15,9.999e-05,2]
[348383115,1736490643301,-1725.42,9.999e-05,2]
[348383117,1736490643310,-500.0,9.999e-05,2]
[348383119,1736490643320,-989.71,9.999e-05,2]
[348383121,1736490643332,-501.09119607,9.999e-05,2]
[348383123,1736490643342,-500.0,9.999e-05,2]
[348383124,1736490643352,-500.0,9.999e-05,2]
[348383126,1736490643362,-483.0689321,9.999e-05,2]
[348383127,1736490643372,-500.0,9.999e-05,2]
[348383130,1736490643382,-502.58153223,9.999e-05,2]
[348383131,1736490643391,-500.0,9.999e-05,2]
[348383134,1736490643401,-500.0,9.999e-05,2]
[348383135,1736490643410,-500.0,9.999e-05,2]
[348383137,1736490643420,-402.21688497,9.999e-05,2]
[348383138,1736490643429,-398.0888454,9.999e-05,2]
[348383139,1736490643440,-3779.15945702,0.0001,2]
[348383141,1736490643449,-306122.06578597,0.0001,2]
[348383146,1736490643824,-500.0,9.997e-05,2]
[348383147,1736490643833,-500.0,9.998e-05,2]
[348383148,1736490643843,-224.55159166,0.0001,2]
[348383149,1736490643854,-4487.19031313,0.0001,2]
[348383150,1736490643865,-5091.82413923,0.0001,2]
[348383151,1736490643883,-370.605,0.0001,2]
[348383152,1736490643894,-255.663,0.0001,2]
[348383153,1736490643906,-364.565,0.0001,2]
[348383154,1736490643918,-2610.97439795,0.0001,2]
[348383155,1736490643930,-466.5999998,0.0001,2]
[348383156,1736490643961,-4284.08219739,0.0001,2]
[348383157,1736490643985,-826.42173921,0.0001,2]
[348383158,1736490644003,-569.83961112,0.0001,2]
[348383160,1736490644657,-652.86,9.997e-05,2]
[348383161,1736490644667,-286.14831506,9.997e-05,2]
[348383162,1736490644678,-215.21002791,9.997e-05,2]
[348383163,1736490644687,-507.7432834,9.998e-05,2]
[348383164,1736490644697,-6022.00037248,0.0001,2]
[348383165,1736490644709,-9849.16828037,0.0001,2]
[348383166,1736490644740,-883.5024607,0.0001,2]
[348383167,1736490644751,-6806.8384954,0.0001,2]
[348383168,1736490644771,-978.79830355,0.0001,2]
[348383169,1736490644783,-8847.32969744,0.0001,2]
[348383170,1736490644794,-5363.82640682,0.0001,2]
[348383171,1736490644805,-435.64141315,0.0001,2]
[348383180,1736490646359,-1183.39295,9.85e-05,2]
[348383181,1736490646368,-260.52987078,9.973e-05,2]
[348383182,1736490646378,-500.0,9.997e-05,2]
[348383183,1736490646387,-500.0,9.997e-05,2]
[348383184,1736490646396,-500.0,9.997e-05,2]
[348383185,1736490646405,-500.0,9.998e-05,2]
[348383186,1736490646414,-500.0,9.998e-05,2]
[348383187,1736490646423,-3043.28,9.998e-05,2]
[348383188,1736490646432,-36420.15436565,0.0001,2]
[348383189,1736490646450,-9985.0,0.0001,2]
[348383190,1736490646472,-626.8265502,0.0001,2]
[348383191,1736490646483,-383.5086327,0.0001,2]
[348383192,1736490646494,-332.6633852,0.0001,2]
[348383193,1736490646541,-1236.38467628,0.0001,2]
[348383194,1736490646553,-39487.17226742,0.0001,2]
[348383195,1736490646620,-201377.15030259,0.0001,2]
[348383196,1736490646697,-704.9042855,0.0001,2]
[348383197,1736490646709,-738.9687237,0.0001,2]
[348383198,1736490896273,1209.23,8.219e-05,2]
[348383199,1736491222441,156.4,8.9e-05,2]
[348383201,1736491403358,150.0,8.19e-05,2]
[348383208,1736491595115,150.0,8.685e-05,2]
[348383209,1736491596379,181.12,8.608e-05,2]
[348383241,1736491764298,1148.76,8.219e-05,2]
[348383251,1736491831647,-150.0,9e-05,2]
[348383252,1736491831658,-150.0,9e-05,2]
[348383253,1736491831669,-150.0,9e-05,2]
[348383254,1736491831680,-150.0,9e-05,2]
[348383255,1736491831691,-150.0,9e-05,2]
[348383256,1736491831701,-150.0,9.014e-05,2]
[348383257,1736491831710,-150.0,9.029e-05,2]
[348383258,1736491831721,-150.0,9.033e-05,2]
[348383259,1736491831730,-150.0,9.057e-05,2]
[348383260,1736491831739,-150.0,9.067e-05,2]
[348383261,1736491831748,-150.0,9.086e-05,2]
[348383262,1736491831757,-150.0,9.1e-05,2]
[348383263,1736491831767,-150.0,9.114e-05,2]
[348383264,1736491831775,-150.0,9.133e-05,2]
[348383265,1736491831785,-150.0,9.143e-05,2]
[348383266,1736491831794,-150.0,9.167e-05,2]
[348383267,1736491831803,-150.0,9.167e-05,2]
[348383268,1736491831812,-150.0,9.171e-05,2]
[348383269,1736491831823,-150.0,9.2e-05,2]
[348383270,1736491831834,-150.0,9.2e-05,2]
[348383271,1736491831847,-150.0,9.229e-05,2]
[348383272,1736491831857,-150.0,9.233e-05,2]
[348383273,1736491831868,-150.0,9.257e-05,2]
[348383274,1736491831877,-150.0,9.267e-05,2]
[348383275,1736491831886,-1000.0,9.28e-05,2]
[348383276,1736491831895,-150.0,9.286e-05,2]
[348383277,1736491831904,-150.0,9.3e-05,2]
[348383278,1736491831913,-150.0,9.314e-05,2]
[348383279,1736491831923,-281.64,9.315e-05,2]
[348383280,1736491831932,-209.41,9.322e-05,2]
[348383281,1736491831941,-150.0,9.333e-05,2]
[348383282,1736491831950,-300.0,9.333e-05,2]
[348383283,1736491831962,-150.0,9.333e-05,2]
[348383284,1736491831972,-150.0,9.333e-05,2]
[348383285,1736491831983,-150.0,9.343e-05,2]
[348383286,1736491831996,-250.0,9.344e-05,2]
[348383287,1736491832008,-150.0,9.367e-05,2]
[348383288,1736491832019,-150.0,9.371e-05,2]
[348383289,1736491832029,-150.0,9.4e-05,2]
[348383290,1736491832040,-150.0,9.4e-05,2]
[348383291,1736491832049,-150.0,9.429e-05,2]
[348383292,1736491832059,-150.0,9.433e-05,2]
[348383293,1736491832069,-150.0,9.457e-05,2]
[348383294,1736491832079,-150.0,9.467e-05,2]
[348383296,1736491832088,-150.0,9.478e-05,2]
[348383298,1736491832098,-150.0,9.486e-05,2]
[348383300,1736491832111,-156.454,9.5e-05,2]
[348383302,1736491832120,-150.0,9.5e-05,2]
[348383304,1736491832130,-150.0,9.5e-05,2]
[348383306,1736491832139,-150.0,9.514e-05,2]
[348383308,1736491832148,-150.0,9.533e-05,2]
[348383310,1736491832158,-150.0,9.543e-05,2]
[348383312,1736491832167,-150.0,9.567e-05,2]
[348383314,1736491832177,-150.0,9.571e-05,2]
[348383316,1736491832186,-150.0,9.6e-05,2]
[348383318,1736491832195,-150.0,9.6e-05,2]
[348383320,1736491832204,-150.0,9.629e-05,2]
[348383322,1736491832213,-150.0,9.633e-05,2]
[348383323,1736491832222,-150.0,9.657e-05,2]
[348383324,1736491832231,-150.0,9.667e-05,2]
[348383325,1736491832240,-150.0,9.667e-05,2]
[348383326,1736491832249,-181.12,9.684e-05,2]
[348383327,1736491832259,-150.0,9.686e-05,2]
[348383328,1736491832267,-150.0,9.7e-05,2]
[348383329,1736491832277,-150.0,9.714e-05,2]
[348383330,1736491832286,-10013.0,9.723e-05,2]
[348383331,1736491832296,-150.0,9.733e-05,2]
[348383332,1736491832306,-150.0,9.743e-05,2]
[348383333,1736491832315,-150.0,9.767e-05,2]
[348383334,1736491832324,-150.0,9.771e-05,2]
[348383335,1736491832334,-150.0,9.8e-05,2]
[348383336,1736491832343,-150.0,9.8e-05,2]
[348383337,1736491832352,-150.0,9.829e-05,2]
[348383338,1736491832361,-150.0,9.833e-05,2]
[348383339,1736491832371,-150.0,9.833e-05,2]
[348383340,1736491832381,-150.0,9.857e-05,2]
[348383341,1736491832391,-150.0,9.867e-05,2]
[348383342,1736491832400,-150.0,9.871e-05,2]
[348383343,1736491832409,-150.0,9.886e-05,2]
[348383344,1736491832419,-150.0,9.9e-05,2]
[348383345,1736491832428,-150.0,9.914e-05,2]
[348383346,1736491832438,-150.0,9.933e-05,2]
[348383347,1736491832447,-150.0,9.943e-05,2]
[348383348,1736491832456,-150.0,9.967e-05,2]
[348383349,1736491832466,-150.0,9.971e-05,2]
[348383350,1736491832475,-176.76807565,9.973e-05,2]
[348383351,1736491832484,-162.957,9.992e-05,2]
[348383352,1736491832494,-2618.037,9.992e-05,2]
[348383353,1736491832503,-12396.9740973,9.992e-05,2]
[348383354,1736491832512,-1077.4112056,9.992e-05,2]
[348383355,1736491832521,-2287.4376175,9.992e-05,2]
[348383356,1736491832530,-500.0,9.997e-05,2]
[348383357,1736491832540,-500.0,9.997e-05,2]
[348383358,1736491832549,-500.0,9.997e-05,2]
[348383359,1736491832560,-292.35801682,9.997e-05,2]
[348383360,1736491832571,-500.0,9.997e-05,2]
[348383361,1736491832580,-500.0,9.997e-05,2]
[348383362,1736491832590,-500.0,9.997e-05,2]
[348383363,1736491832599,-500.0,9.997e-05,2]
[348383364,1736491832609,-500.0,9.997e-05,2]
[348383365,1736491832619,-500.0,9.997e-05,2]
[348383366,1736491832629,-500.0,9.997e-05,2]
[348383367,1736491832639,-500.0,9.997e-05,2]
[348383368,1736491832650,-500.0,9.997e-05,2]
[348383369,1736491832659,-500.0,9.997e-05,2]
[348383370,1736491832668,-503.21358854,9.997e-05,2]
[348383371,1736491832680,-500.0,9.997e-05,2]
[348383372,1736491832692,-500.0,9.997e-05,2]
[348383373,1736491832703,-1508.78,9.997e-05,2]
[348383374,1736491832713,-500.0,9.997e-05,2]
[348383375,1736491832724,-500.0,9.997e-05,2]
[348383376,1736491832734,-500.0,9.997e-05,2]
[348383377,1736491832744,-520.89,9.997e-05,2]
[348383378,1736491832755,-429.68041939,9.997e-05,2]
[348383379,1736491832765,-500.0,9.997e-05,2]
[348383380,1736491832776,-500.0,9.997e-05,2]
[348383381,1736491832785,-500.0,9.997e-05,2]
[348383382,1736491832796,-500.0,9.997e-05,2]
[348383383,1736491832805,-500.0,9.997e-05,2]
[348383384,1736491832816,-500.0,9.997e-05,2]
[348383385,1736491832827,-500.0,9.997e-05,2]
[348383386,1736491832835,-500.0,9.997e-05,2]
[348383387,1736491832844,-500.0,9.997e-05,2]
[348383388,1736491832854,-500.0,9.997e-05,2]
[348383389,1736491832863,-500.0,9.997e-05,2]
[348383390,1736491832872,-500.0,9.997e-05,2]
[348383391,1736491832881,-500.0,9.997e-05,2]
[348383392,1736491832890,-500.0,9.997e-05,2]
[348383393,1736491832899,-500.0,9.997e-05,2]
[348383394,1736491832908,-500.0,9.997e-05,2]